Cogmind - Beta 14 @@@ ROGUE MODE // 2025.03.01 @ 18:10:48 Player: J1ang-5h1 Result: Destroyed by B-75 Beast with Magnetic Acceleration Cannon Performance ------------- Evolutions (4) 2000 Regions Visited (12) 2400 Robots Destroyed (191) 955 Value Destroyed (6172) 6172 Prototype IDs (24) 480 Alien Tech Used (0) 0 Bonus (478) 478 TOTAL SCORE: 12485 Bonus ------- High Alert Combat Kills 134 Follower Combat Kills 176 Met Data Miner 300 Friendly Fire -132 Cogmind --------- Core Integrity 0/850 Matter 289/300 Energy 483/615 System Corruption 0% Temperature Cool (0) Movement Core (1700) Ox33 Location -6/Extension Parts ------- > --- POWER (2) -------- Improved Ion Engine > --- PROPULSION (4) --- (None) > --- UTILITY (7) ------ Improved Heat Sink Huge Storage Unit Energy Well Improved Particle Charger Hacking Suite Makeshift System Shield Corruption Screen > --- WEAPON (2) ------- Gatling Laser > --- INVENTORY (25) --- Energy Well (350) High-capacity Matter Pod (200) Structural Scanner Machine Analyzer Advanced Visual Processing Unit Advanced Signal Interpreter Improved Reaction Control System Hacking Suite Hacking Suite Makeshift System Shield Dynamic Insulation System High-powered Tractor Beam Great Axe Peak State ------------ > --- POWER ------------ Improved Deuterium Engine Light Angular Momentum Engine > --- PROPULSION ------- Light Treads Carbon-fiber Leg Wheel Gravmag System > --- UTILITY ---------- Advanced Heat Sink Huge Storage Unit Transmission Jammer Layered Medium Armor Plating Hacking Suite Makeshift System Shield High-powered Tractor Beam > --- WEAPON ----------- Slug Cannon Slug Cannon > --- INVENTORY -------- Advanced Heat Sink Energy Well Energy Well High-capacity Matter Pod Structural Scanner Improved Trap Scanner Machine Analyzer Advanced Visual Processing Unit Advanced Signal Interpreter Improved Particle Charger Improved Reaction Control System Hardened Heavy Armor Plating Improved Light Armor Plating Improved Shield Generator Hacking Suite Hacking Suite Hacking Suite Makeshift System Shield Dynamic Insulation System Corruption Screen Phase Cannon Phase Cannon Heavy Rocket Launcher Great Axe [Rating: 60] Favorites ----------- Power Improved Deuterium Engine Engine Improved Deuterium Engine Power Core Light Nuclear Core Propulsion Light Treads Treads Light Treads Leg Aluminum Leg Wheel Armored Huge Wheel Hover Unit Gravmag System Utility Hacking Suite Device Improved Cooling System Storage Huge Storage Unit Processor Improved Signal Interpreter Hackware Hacking Suite Protection Reflective Plating Weapon Advanced Beam Rifle Energy Gun Advanced Beam Rifle Energy Cannon Phase Cannon Ballistic Cannon Slug Cannon Launcher Heavy Rocket Launcher Special Weapon Plasma Flamer Impact Weapon Mace Slashing Weapon Great Axe Build | -11 -10 -10 -9 -9 -8 -7 -7 -7 -7 -6 -6 -6 ------- Run | Yrd Mat Min Mat Min Mat Fac Low Low Dat Pro Fac Ext Slots Evolved 8 | . . . 2 . 2 2 . . . . 2 . Power 1 | . . . . . . . . . . . 1 . Propulsion 2 | . . . . . 2 . . . . . . . Utility 5 | . . . 2 . . 2 . . . . 1 . Weapon . | . . . . . . . . . . . . . Parts Attached 283 | 2 12 11 39 1 29 63 18 3 1 29 33 42 Power 23 | . 1 1 5 . 1 2 . . . 1 4 8 Engine 15 | . 1 . 4 . 1 2 . . . 1 3 3 Core 8 | . . 1 1 . . . . . . . 1 5 Reactor . | . . . . . . . . . . . . . Propulsion 46 | . 4 . 8 . 9 8 1 . . 2 8 6 Treads 24 | . 2 . 6 . 9 2 . . . 1 . 4 Leg 1 | . . . . . . . . . . . 1 . Wheel 20 | . 2 . 2 . . 6 1 . . 1 6 2 Hover 1 | . . . . . . . . . . . 1 . Flight . | . . . . . . . . . . . . . Utility 98 | 2 2 6 10 . 9 19 9 . . 12 9 20 Device 55 | 2 . 3 4 . 6 10 5 . . 9 5 11 Storage 6 | . 1 . . . 1 1 . . . . . 3 Processor 2 | . . . . . . 1 . . . . 1 . Hackware 3 | . . . . . . 2 . . . . 1 . Protection 32 | . 1 3 6 . 2 5 4 . . 3 2 6 Artifact . | . . . . . . . . . . . . . Weapon 116 | . 5 4 16 1 10 34 8 3 1 14 12 8 Energy Gun 51 | . 2 1 11 1 8 23 3 . . . . 2 Energy Cannon 6 | . . . . . . . . . . . 2 4 Ballistic Gun . | . . . . . . . . . . . . . Ballistic Cannon 20 | . 2 2 . . . . . 2 1 8 5 . Launcher 7 | . . . . . . . 1 . . 4 1 1 Special Weapon 3 | . 1 1 1 . . . . . . . . . Impact Weapon 7 | . . . 4 . 2 . . . . . . 1 Slashing Weapon 22 | . . . . . . 11 4 1 . 2 4 . Piercing Weapon . | . . . . . . . . . . . . . Special Melee Weapon . | . . . . . . . . . . . . . Unidentified Prototypes 4 | . . . 4 . . . . . . . . . Parts Lost 71 | . 4 1 9 . 1 8 1 . . 11 1 35 Power 12 | . 1 . 3 . . . . . . 2 . 6 Propulsion 22 | . 1 . 3 . . 5 . . . 2 1 10 Utility 26 | . 1 . 2 . 1 2 1 . . 6 . 13 Weapon 11 | . 1 1 1 . . 1 . . . 1 . 6 Highest Loss Streak 14 | . 4 1 2 . 1 3 1 . . 3 1 14 To Critical Strikes . | . . . . . . . . . . . . . Average Slot Usage (%) 91 | . 95 100 98 100 99 94 87 84 76 71 84 90 Engine 7 | . 14 14 2 11 9 7 7 7 7 4 5 8 Core 1 | . . . 7 . . . . . . . . 2 Treads 14 | . 10 28 19 . 35 15 3 . . 2 4 16 Wheel 7 | . 17 . 1 22 . 9 14 15 15 7 9 3 Device 14 | . 8 10 11 11 16 11 20 23 23 17 23 16 Storage 9 | . 14 14 11 11 8 7 7 7 7 7 6 7 Processor 2 | . . . . . . 4 7 7 7 1 . 6 Hackware 6 | . . . . . . 15 7 7 7 7 12 13 Protection 5 | . . 3 21 22 10 5 2 . . 5 1 1 Energy Gun 11 | . 26 21 14 22 17 12 11 . . . . . Energy Cannon 1 | . . . . . . . . . . . 1 11 Ballistic Cannon 3 | . 1 . 6 . . . . 8 . 12 9 . Slashing Weapon 1 | . . . . . . 2 3 5 7 2 . . Peak Build Rating 60 | 10 10 16 24 22 30 49 54 51 51 53 60 58 Average Rating 33 | 6 8 11 19 22 26 42 48 50 47 41 50 49 On Entrance 31 | 6 7 10 11 22 22 30 48 51 51 51 36 58 Naked Turns . | . . . . . . . . . . . . . Heaviest Build 132 | 13 50 52 60 60 60 107 107 108 105 127 124 132 Greatest Support 80 | 20 40 40 43 22 80 80 56 56 56 56 40 80 Greatest Overweight (x) 42 | . 1 1 4 2 2 10 3 1 1 42 12 30 Average Overweight (x) 1 | . . 1 1 2 . 2 1 1 1 3 4 2 Largest Inventory Capacity 25 | 8 20 20 20 20 20 25 25 25 25 25 25 25 Average Capacity 22 | 8 19 20 20 20 19 24 25 25 25 25 25 25 Most Carried 25 | 8 16 18 20 20 20 25 25 25 25 25 25 25 Average Carried 20 | 6 10 17 19 20 19 23 24 24 25 20 24 21 Final Capacity 25 | 8 20 20 20 20 20 25 25 25 25 25 25 25 Final Carried 25 | 7 16 17 20 20 20 25 25 25 25 19 25 13 Class Distribution -------------------- 43% | Mutant 24% | Scavenger-Mutant 17% | Hacker-Mutant 11% | Assassin Dominant Class ---------------- Mutant | -10/Materials Mutant | -10/Mines Mutant | -9/Materials Mutant | -9/Mines Mutant | -8/Materials Hacker-Mutant | -7/Factory Assassin | -7/Lower Caves Assassin | -7/Lower Caves Assassin | -7/Data Miner Mutant | -6/Proximity Caves Hacker-Mutant | -6/Factory Scavenger-Mutant | -6/Extension Resources | -11 -10 -10 -9 -9 -8 -7 -7 -7 -7 -6 -6 -6 ----------- Run | Yrd Mat Min Mat Min Mat Fac Low Low Dat Pro Fac Ext Matter Collected 4654 | 220 304 126 583 . 305 601 260 60 . 1129 592 474 Remotely 1216 | . . . . . . . . . . 687 529 . Salvage Created 6921 | 123 406 241 1467 . 1227 1496 159 39 . 457 402 904 Parts 362 | 7 27 17 99 . 65 53 5 3 . 18 32 36 Haulers Intercepted 7 | . 2 . 3 . 2 . . . . . . . Recyclers Shooed 4 | . . 1 1 . 1 . . . . . . 1 Parts Field Recycled . | . . . . . . . . . . . . . Retrieved Matter . | . . . . . . . . . . . . . Parts Self-Destructed 23 | . . . . . . . 3 3 . 17 . . Prevented . | . . . . . . . . . . . . . Kills | -11 -10 -10 -9 -9 -8 -7 -7 -7 -7 -6 -6 -6 ------- Run | Yrd Mat Min Mat Min Mat Fac Low Low Dat Pro Fac Ext Combat Hostiles Destroyed 135 | . 7 6 34 . 15 25 6 1 . 21 10 10 Guns 74 | . 6 3 27 . 13 21 2 . . . . 2 Cannons 38 | . 1 2 6 . . . . 1 . 11 10 7 AOE 16 | . . . . . 1 2 3 . . 10 . . Classes Destroyed 19 | 2 6 . 4 . 2 1 1 . . 2 . 1 Worker 15 | . 2 . 2 . 3 5 . . . . 3 . Builder 2 | . . . 1 . 1 . . . . . . . Tunneler 6 | 2 1 2 . . . . . . . . . 1 Hauler 7 | . 2 . 3 . 2 . . . . . . . Recycler 7 | 1 . . . . 3 . . . . . . 3 Mechanic 4 | . 1 . . . . 2 . . . . 1 . Operator 3 | . . . 3 . . . . . . . . . Drone 2 | . . . . . . . . . . 2 . . Watcher 11 | . 2 . 4 . 2 2 . . . . . 1 Swarmer 25 | . 3 . 11 . . 4 3 . . 1 . 3 Grunt 60 | . 4 6 15 . 8 8 1 . . 11 6 1 Brawler 4 | . . . 1 . . 1 . . . 2 . . Duelist 5 | . . . . . 1 . . . . 4 . . Protector 1 | . . . . . . . . . . 1 . . Sentry 23 | . . . 7 . 5 6 . . . 1 1 3 Hunter 6 | . . . . . 1 2 1 1 . . . 1 Programmer 8 | . . . . . . 4 . . . . 3 1 Behemoth 1 | . . . . . . . . . . . . 1 Mutant 1 | . . . . . . . 1 . . . . . Best Kill Streak 8 | 2 3 2 7 . 4 8 3 1 . 7 6 2 Combat Bots Only 7 | . 3 2 4 . 2 5 3 1 . 7 4 2 Max Kills in Single Turn 3 | 1 1 1 1 . 3 2 2 1 . 2 1 1 Gunslinging . | . . . . . . . . . . . . . Exploded 2 | . . . . . 1 1 2 . . 2 . . Melee . | . . . . . . . . . . . . . Uniques/NPCs Destroyed . | . . . . . . . . . . . . . Combat | -11 -10 -10 -9 -9 -8 -7 -7 -7 -7 -6 -6 -6 -------- Run | Yrd Mat Min Mat Min Mat Fac Low Low Dat Pro Fac Ext Hostile Shots Fired 1204 | . 47 27 190 . 66 337 28 6 . 100 56 347 Missed 330 | . 7 6 39 . 12 115 5 3 . 33 16 94 Damage Taken 11594 | . 444 258 1815 . 901 2201 355 17 . 1529 641 3433 Core 1636 | . 84 49 137 . 58 264 66 . . 118 118 742 Absorbed by Shields 195 | . . . . . . . . . . . . 195 Redirected to Shielding 44 | . . 7 34 . 3 . . . . . . . Ignored by Resistances 571 | . . . 55 . 76 164 8 . . 14 . 254 Regen/Repaired (Parts) 602 | . . . 89 . 136 377 . . . . . . Core Remaining (%) 67 | 100 . 46 . 65 89 . . . . 36 . . Volleys Fired 561 | 12 40 19 131 . 63 103 12 2 . 59 32 88 Largest 2 | 2 2 2 2 . 2 2 2 2 . 2 2 2 Hottest 170 | 80 105 165 122 . 122 122 119 96 . 96 96 170 Shots Fired 974 | 24 76 34 195 . 126 200 20 5 . 102 64 128 Gun 642 | 24 69 17 148 . 126 200 17 . . . . 41 Cannon 303 | . 6 10 46 . . . . 5 . 86 64 86 Launcher 20 | . . . . . . . 3 . . 16 . 1 Special 9 | . 1 7 1 . . . . . . . . . Kinetic 217 | . 6 10 46 . . . . 5 . 86 64 . Thermal 721 | 24 70 24 149 . 124 186 17 . . . . 127 Explosive 20 | . . . . . . . 3 . . 16 . 1 Electromagnetic 16 | . . . . . 2 14 . . . . . . Robot Hit Streak 31 | 9 11 8 9 . 13 31 19 2 . 7 6 23 Robot Miss Streak 8 | 4 3 4 4 . 2 4 2 2 . 8 4 6 Penetration Max 1 | . . . . . . . . . . 1 . . Secondary Targets 2 | . . . 1 . . 1 . . . . . . Max Gunslinging Chain 1 | . . . 1 . . 1 . . . . . . Shots Hit Robots 652 | 15 46 23 120 . 92 148 17 2 . 50 39 100 Core Hits 332 | 4 20 14 50 . 42 70 12 1 . 57 23 39 Critical Kills 7 | . . . . . . . . . . 2 4 1 Critical Parts Destroyed 5 | . . . 1 . . . . . . 2 2 . Critical Strikes 46 | . 1 3 10 . 9 9 . . . 6 6 2 Burn 32 | . 1 3 9 . 9 9 . . . . . 1 Meltdown 1 | . . . . . . . . . . . . 1 Destroy 10 | . . . . . . . . . . 4 6 . Blast 2 | . . . . . . . . . . 2 . . Smash 1 | . . . 1 . . . . . . . . . Melee Attacks 59 | . . . 17 . 1 25 10 4 . . 2 . Impact 18 | . . . 17 . 1 . . . . . . . Slashing 41 | . . . . . . 25 10 4 . . 2 . Piercing . | . . . . . . . . . . . . . Sneak Attacks 5 | . . . 2 . . 1 . . . . 2 . Combat Hostiles . | . . . . . . . . . . . . . Follow-up Attacks . | . . . . . . . . . . . . . Damage Inflicted 17571 | 169 625 321 2685 . 1847 3349 732 23 . 3424 1179 3217 Guns 9265 | 169 571 177 1970 . 1688 3143 337 . . . . 1210 Cannons 4802 | . 54 54 451 . . . . 23 . 1184 1049 1987 Explosions 2943 | . . . . . 159 129 395 . . 2240 . 20 Melee 471 | . . . 264 . . 77 . . . . 130 . Ramming . | . . . . . . . . . . . . . Kinetic 2815 | . 54 54 451 . . . . 23 . 1184 1049 . Thermal 11445 | 169 571 267 1970 . 1802 3132 337 . . . . 3197 Explosive 2655 | . . . . . . . 395 . . 2240 . 20 Electromagnetic 185 | . . . . . 45 140 . . . . . . Impact 264 | . . . 264 . . . . . . . . . Slashing 207 | . . . . . . 77 . . . . 130 . Piercing . | . . . . . . . . . . . . . Highest Corruption 13 | . . . . . . 1 1 1 1 13 . . Average Corruption 2 | . . . . . . 1 1 1 1 5 . . Corruption Purged . | . . . . . . . . . . . . . Corruption Blocked . | . . . . . . . . . . . . . Effects 49 | . . . . . . 4 15 5 1 24 . . Message Errors 17 | . . . . . . 1 6 2 1 7 . . Matter Fused 11 | . . . . . . . 4 . . 7 . . Heat Flow Errors 7 | . . . . . . 1 2 1 . 3 . . Energy Discharges 3 | . . . . . . . 1 . . 2 . . Data Loss (minor) 1 | . . . . . . . . 1 . . . . Data Loss (major) 3 | . . . . . . 2 . . . 1 . . Misfires 6 | . . . . . . . 2 1 . 3 . . Alerts 1 | . . . . . . . . . . 1 . . Overload Shots . | . . . . . . . . . . . . . Overflow Damage 240 | . . . 55 . . . 53 . . 14 53 65 Projectiles 80 | . . . . . . . . . . 8 27 45 Explosions 79 | . . . . . . . 53 . . 6 . 20 Melee 81 | . . . 55 . . . . . . . 26 . Knockbacks 26 | . 1 1 3 . . . . . . 8 13 . Impact 1 | . . . 1 . . . . . . . . . Kinetic 22 | . 1 1 2 . . . . . . 8 10 . Secondary 3 | . . . . . . . . . . . 3 . Self-Inflicted Damage 203 | . . . . . 30 47 1 . . 98 . 27 Shots 9 | . . . . . 1 1 1 . . 5 . 1 Rammed . | . . . . . . . . . . . . . Targets Rammed . | . . . . . . . . . . . . . Kicked . | . . . . . . . . . . . . . Crushed . | . . . . . . . . . . . . . Highest Temperature 444 | 90 228 260 306 . 171 241 237 163 . 239 22 444 Average Temperature 65 | 37 82 98 70 . 43 19 70 82 . 91 8 84 Received Heat Transfer 3767 | . 225 150 663 . 360 687 120 . . 405 243 914 Siege Activations . | . . . . . . . . . . . . . Robots Corrupted 1 | . . . 1 . . . . . . . . . Combat Hostiles 1 | . . . 1 . . . . . . . . . Parts Fried 2 | . . . 1 . . 1 . . . . . . Impact Corruptions 3 | . . . 3 . . . . . . . . . Robots Melted 6 | . . 1 . . 1 2 1 . . . . 1 Combat Hostiles 6 | . . 1 . . 1 2 1 . . . . 1 Parts Melted 53 | . 5 1 6 . 7 26 2 . . . . 6 Heat Transferred 23065 | 375 1354 1289 4051 . 4183 6175 698 . . . . 4940 Parts Sabotaged . | . . . . . . . . . . . . . Parts Stolen . | . . . . . . . . . . . . . Parts Stripped . | . . . . . . . . . . . . . Power Chain Reactions 4 | . . . . . 2 2 . . . . . . Alert | -11 -10 -10 -9 -9 -8 -7 -7 -7 -7 -6 -6 -6 ------- Run | Yrd Mat Min Mat Min Mat Fac Low Low Dat Pro Fac Ext Peak Influence 576 | 15 135 60 576 224 412 300 . . . . 420 272 Initial 300 | . 9 . . 224 87 124 . . . . 300 147 Average 145 | 9 49 8 245 224 291 148 . . . . 293 59 Maximum Alert Level 2 | . . . 2 1 2 1 . . . . 2 1 Low Security (%) 67 | 100 100 100 43 . 13 73 . . . . 12 91 Level 1 27 | . . . 30 100 78 26 . . . . 83 8 Level 2 5 | . . . 25 . 7 . . . . . 3 . Level 3 . | . . . . . . . . . . . . . Level 4 . | . . . . . . . . . . . . . Level 5 . | . . . . . . . . . . . . . High Security . | . . . . . . . . . . . . . Max Security . | . . . . . . . . . . . . . Squads Dispatched 15 | . 2 . 4 . . 5 . . . 1 3 . Investigation 4 | . 2 . 1 . . 1 . . . . . . Extermination 6 | . . . . . . 4 . . . . 2 . Reinforcement 3 | . . . 2 . . . . . . . 1 . Assault 2 | . . . 1 . . . . . . 1 . . Garrison . | . . . . . . . . . . . . . Intercept . | . . . . . . . . . . . . . Searches Triggered . | . . . . . . . . . . . . . Construction Impeded . | . . . . . . . . . . . . . Haulers Reinforced . | . . . . . . . . . . . . . Active Scanning Responses . | . . . . . . . . . . . . . Cargo Convoy Interrupts . | . . . . . . . . . . . . . Stealth | -11 -10 -10 -9 -9 -8 -7 -7 -7 -7 -6 -6 -6 --------- Run | Yrd Mat Min Mat Min Mat Fac Low Low Dat Pro Fac Ext Distress Signals 11 | . 1 . 3 . 3 . . . . 1 1 2 Communications Jammed 9 | . . . . . . . . . . 2 6 1 Distress Signals 7 | . . . . . . . . . . . 6 1 Times Spotted 207 | . 13 6 52 . 23 45 6 1 . 27 16 18 Peak Tracking Total 9 | . 3 2 5 . 4 4 3 1 . 9 4 6 Tactical Retreats 7 | . 2 . . . 1 . . . . 1 1 2 Traps | -11 -10 -10 -9 -9 -8 -7 -7 -7 -7 -6 -6 -6 ------- Run | Yrd Mat Min Mat Min Mat Fac Low Low Dat Pro Fac Ext Traps Triggered 5 | . . . . . . 2 . . . . . 3 Indirectly . | . . . . . . . . . . . . . Trap Hack Attempts . | . . . . . . . . . . . . . Triggered . | . . . . . . . . . . . . . Disarmed . | . . . . . . . . . . . . . Reprogrammed . | . . . . . . . . . . . . . Reused . | . . . . . . . . . . . . . Traps Extracted . | . . . . . . . . . . . . . Installed . | . . . . . . . . . . . . . Triggered 1 | . . . . . . . 1 . . . . . Most Traps Carried 1 | . . . . . . . 1 . . . . . Machines | -11 -10 -10 -9 -9 -8 -7 -7 -7 -7 -6 -6 -6 ---------- Run | Yrd Mat Min Mat Min Mat Fac Low Low Dat Pro Fac Ext Machines Disabled 6 | . . . 2 . . 1 1 . . 1 1 . Max in Single Turn 1 | . . . 1 . . 1 1 . . 1 1 . Machines Repaired . | . . . . . . . . . . . . . Machines Dismantled . | . . . . . . . . . . . . . Machines Sabotaged . | . . . . . . . . . . . . . Overloaded Fab Kills . | . . . . . . . . . . . . . Hacking | -11 -10 -10 -9 -9 -8 -7 -7 -7 -7 -6 -6 -6 --------- Run | Yrd Mat Min Mat Min Mat Fac Low Low Dat Pro Fac Ext Machines Accessed 56 | . 7 . 11 . 7 16 1 1 4 . 5 4 Terminals 33 | . 5 . 8 . 5 9 . . . . 2 4 Fabricators 2 | . . . . . . 1 . . . . 1 . Repair Stations 5 | . . . 1 . 1 3 . . . . . . Recycling Units 7 | . 2 . 1 . . 2 . . . . 2 . Scanalyzers 3 | . . . 1 . 1 1 . . . . . . Garrison Access . | . . . . . . . . . . . . . Total Hacks 193 | . 19 . 39 . 31 41 1 1 27 . 11 23 Successful 126 | . 12 . 22 . 21 19 1 1 27 . 9 14 Failed 66 | . 7 . 16 . 10 22 . . . . 2 9 Catastrophic 8 | . 1 . 2 . 1 1 . . . . 1 2 Database Lockouts 1 | . . . 1 . . . . . . . . . Manual 84 | . 13 . 25 . 12 20 . . . . 1 13 Terminals 123 | . 15 . 28 . 25 26 . . . . 6 23 Fabricators 3 | . . . . . . 2 . . . . 1 . Repair Stations 14 | . . . 2 . 3 9 . . . . . . Recycling Units 19 | . 4 . 8 . . 3 . . . . 4 . Scanalyzers 5 | . . . 1 . 3 1 . . . . . . Garrison Access . | . . . . . . . . . . . . . Terminal Hacks 68 | . 4 . 6 . 10 5 1 1 27 . 4 10 Record 11 | . . . . . . . . . 11 . . . Part Schematic 9 | . . . . . . . . . 8 . . 1 Robot Schematic 5 | . . . . . . . . . 5 . . . Robot Analysis 8 | . 1 . 1 . 3 1 . . . . . 2 Prototype ID Bank 10 | . . . 2 . 3 . . . 3 . . 2 Open Door 3 | . . . . . . . 1 1 . . 1 . Open DSF 1 | . . . . . . 1 . . . . . . Branch Access Points 1 | . . . . . . 1 . . . . . . Terminal Index 2 | . . . . . 1 . . . . . . 1 Alert Level 3 | . . . . . 1 . . . . . 1 1 Unreport Threat 2 | . . . . . . 1 . . . . . 1 Locate Traps 3 | . 2 . . . . . . . . . 1 . Dispatch Records 2 | . . . . . 1 . . . . . . 1 Transport Status 1 | . . . . . . . . . . . . 1 Recall Extermination 1 | . . . . . . 1 . . . . . . Hauler Manifests 1 | . . . 1 . . . . . . . . . Zone Layout 5 | . 1 . 2 . 1 . . . . . 1 . Fabricator Hacks . | . . . . . . . . . . . . . Repair Station Hacks 12 | . . . 2 . 2 8 . . . . . . Scan Component 6 | . . . 1 . 1 4 . . . . . . Repair 6 | . . . 1 . 1 4 . . . . . . Recycling Unit Hacks 9 | . 2 . 2 . . 1 . . . . 4 . Report Inventory 6 | . 2 . 1 . . 1 . . . . 2 . Retrieve Components 3 | . . . 1 . . . . . . . 2 . Scanalyzer 2 | . . . . . 2 . . . . . . . Insert Component 1 | . . . . . 1 . . . . . . . Analyze 1 | . . . . . 1 . . . . . . . Garrison Access Hacks . | . . . . . . . . . . . . . Unauthorized Hacks 35 | . 6 . 12 . 7 5 . . . . 1 4 Terminals 27 | . 4 . 8 . 7 3 . . . . 1 4 Botnet 11 | . 2 . 2 . 2 2 . . . . 1 2 Skim 16 | . 2 . 6 . 5 1 . . . . . 2 Fabricators . | . . . . . . . . . . . . . Repair Stations . | . . . . . . . . . . . . . Recycling Units 8 | . 2 . 4 . . 2 . . . . . . Monitor 2 | . . . 1 . . 1 . . . . . . Reject 1 | . . . 1 . . . . . . . . . Recyclers 1 | . . . . . . 1 . . . . . . Mask 1 | . . . 1 . . . . . . . . . Tunnel 3 | . 2 . 1 . . . . . . . . . Scanalyzers . | . . . . . . . . . . . . . Garrison Access . | . . . . . . . . . . . . . Data Cores Recovered 1 | . . . 1 . . . . . . . . . Used . | . . . . . . . . . . . . . Hacking Detections 42 | . 5 . 11 . 7 14 . . . . 2 3 Full Trace Events 1 | . . . . . . 1 . . . . . . Feedback Events . | . . . . . . . . . . . . . Feedback Blocked . | . . . . . . . . . . . . . Robot Schematics Acquired 5 | . . . . . . . . . 5 . . . Robots Built . | . . . . . . . . . . . . . Authchips . | . . . . . . . . . . . . . Time . | . . . . . . . . . . . . . Total Robot Build Rating . | . . . . . . . . . . . . . Part Schematics Acquired 10 | . . . . . 1 . . . 8 . . 1 Parts Built . | . . . . . . . . . . . . . Authchips . | . . . . . . . . . . . . . Time . | . . . . . . . . . . . . . Total Part Build Rating . | . . . . . . . . . . . . . Parts Repaired 6 | . . . 1 . 1 4 . . . . . . Time 200 | . . . 60 . 26 114 . . . . . . Parts Recycled . | . . . . . . . . . . . . . Recycled Matter . | . . . . . . . . . . . . . Retrieved Matter . | . . . . . . . . . . . . . Retrieved Components 21 | . . . 10 . . . . . . . 11 . Parts Scanalyzed 1 | . . . . . 1 . . . . . . . Part Schematics Acquired 1 | . . . . . 1 . . . . . . . Parts Damaged . | . . . . . . . . . . . . . Bothacking | -11 -10 -10 -9 -9 -8 -7 -7 -7 -7 -6 -6 -6 ------------ Run | Yrd Mat Min Mat Min Mat Fac Low Low Dat Pro Fac Ext Used RIF Installer . | . . . . . . . . . . . . . Robots Hacked . | . . . . . . . . . . . . . Non-combat . | . . . . . . . . . . . . . Combat . | . . . . . . . . . . . . . Robot Hacks Applied . | . . . . . . . . . . . . . Relay Couplers Released . | . . . . . . . . . . . . . Fabnet Peak Effective % . | . . . . . . . . . . . . . Robots Rewired 6 | . . . . . . . . . . 2 . 4 Allies Hacked . | . . . . . . . . . . . . . Hacks Repelled . | . . . . . . . . . . . . . Allies | -11 -10 -10 -9 -9 -8 -7 -7 -7 -7 -6 -6 -6 -------- Run | Yrd Mat Min Mat Min Mat Fac Low Low Dat Pro Fac Ext Total Allies 11 | . . . . . . . . . . 2 . 9 Largest Group 6 | . . . . . . . . . . 2 . 6 Highest-Rated Group 171 | . . . . . . . . . . 52 . 171 Highest-Rated Ally 39 | . . . . . . . . . . 32 . 39 Total Orders . | . . . . . . . . . . . . . Ally Attacks 20 | . . . . . . . . . . 2 . 18 Total Damage 554 | . . . . . . . . . . 89 . 465 Kills 6 | . . . . . . . . . . 1 . 5 Allies Corrupted 1 | . . . . . . . . . . . . 1 Allies Melted . | . . . . . . . . . . . . . Intel | -11 -10 -10 -9 -9 -8 -7 -7 -7 -7 -6 -6 -6 ------- Run | Yrd Mat Min Mat Min Mat Fac Low Low Dat Pro Fac Ext Robot Analysis Total 8 | . 1 . 1 . 3 1 . . . . . 2 Derelict Logs Recovered 5 | . . 1 . 1 . . . 1 . 2 . . Drone Launches . | . . . . . . . . . . . . . Drone Recoveries . | . . . . . . . . . . . . . Exploration | -11 -10 -10 -9 -9 -8 -7 -7 -7 -7 -6 -6 -6 ------------- Run | Yrd Mat Min Mat Min Mat Fac Low Low Dat Pro Fac Ext Turns Passed 16349 | 116 1640 1632 1930 38 1290 3311 1358 1163 115 1261 909 1586 Spaces Moved 7867 | 59 719 610 627 32 591 1780 1049 907 99 484 402 508 Core 13 | . . . . . . . . . . 8 . 5 Treads 2668 | . 218 610 542 . 583 273 . . . 49 10 383 Legs 88 | 59 21 . . . . . . . . . 8 . Wheels 5098 | . 480 . 85 32 8 1507 1049 907 99 427 384 120 Hover . | . . . . . . . . . . . . . Flight . | . . . . . . . . . . . . . Fastest Speed 110 | 120 115 240 115 115 115 120 115 115 115 115 110 110 Average Speed 165 | 120 153 240 225 115 161 148 118 115 115 215 179 239 Slowest Speed 2150 | 120 240 240 320 115 320 243 145 115 115 2150 640 1550 Overloaded Moves . | . . . . . . . . . . . . . Propulsion Burnouts . | . . . . . . . . . . . . . Robots Hopped . | . . . . . . . . . . . . . Cave-ins Triggered . | . . . . . . . . . . . . . Exploration Rate (%) 54 | 4 75 83 53 13 49 44 88 95 69 72 10 49 Regions Visited 12 Branch Regions 7 Pre-discovered Areas 10 | . 2 . 3 1 2 . . . 1 1 . . Known Exits Taken 8 | . . . 1 . 1 1 1 1 1 1 1 . Unknown Exits Taken 4 | 1 1 1 . 1 . . . . . . . . Scrap Searched 16 | . . 1 . . . . 11 3 . 1 . . Spaces Dug 42 | . 1 . 6 . 1 22 8 4 . . . . Terrain Destroyed 312 | . 1 . 6 . 6 29 43 7 . 173 5 42 Melee 40 | . . . 5 . 1 22 8 4 . . . . Projectile 62 | . 1 . 1 . . . . 3 . 31 5 21 AOE 210 | . . . . . 5 7 35 . . 142 . 21 Terrain Rammed . | . . . . . . . . . . . . . Walls Destroyed . | . . . . . . . . . . . . . Machines Disabled . | . . . . . . . . . . . . . Actions | -11 -10 -10 -9 -9 -8 -7 -7 -7 -7 -6 -6 -6 --------- Run | Yrd Mat Min Mat Min Mat Fac Low Low Dat Pro Fac Ext Total 10042 | 79 1178 737 922 32 801 2191 1128 1016 100 597 520 741 Wait 988 | 4 395 94 48 . 74 174 20 96 . . 26 57 Move 7855 | 58 718 609 626 31 590 1779 1048 906 98 483 401 508 Hop . | . . . . . . . . . . . . . Pick Up 152 | 2 13 3 34 . 26 23 10 2 . 6 11 22 Fast Attach 26 | 1 . . 4 . 6 3 . 1 1 . 10 . Attach 80 | . 4 1 13 . 4 12 2 . . 10 3 31 Detach 3 | . . . . . . 1 . . . 1 1 . Swap 177 | 1 8 10 22 1 19 48 16 2 . 19 20 11 Drop 95 | 1 . 1 27 . 18 15 10 3 1 2 14 3 Fire 561 | 12 40 19 131 . 63 103 12 2 . 59 32 88 Melee 59 | . . . 17 . 1 25 10 4 . . 2 . Ram . | . . . . . . . . . . . . . Kick . | . . . . . . . . . . . . . Crush . | . . . . . . . . . . . . . Escape Stasis 8 | . . . . . . 8 . . . . . . Rewire 38 | . . . . . . . . . . 17 . 21 Trap . | . . . . . . . . . . . . . Miscellaneous . | . . . . . . . . . . . . . Route ------- -11/Scrapyard -10/Materials (discovered 3 exits: *Mat x2 / [*Min]) -10/Mines -9/Materials (discovered 6 exits: *Mat x3 / *Min x2 / [*Sto]) -9/Mines -8/Materials (discovered 3 exits: *Fac x3) -7/Factory (discovered 3 exits: *Fac / *Low x2) -7/Lower Caves -7/Lower Caves (discovered 2 exits: *Fac / *Dat) -7/Data Miner -6/Proximity Caves -6/Factory (discovered 2 exits: *Ext x2) -6/Extension (discovered 1 exit: Fac) History --------- Turn | Location | Event 1 | -11/Scrapyard | Discovered new exit (range 3) 117 | -11/Scrapyard | Entered Materials 200 | -10/Materials | Discovered new exit (range 12) 264 | -10/Materials | Discovered new exit (range 15) 301 | -10/Materials | Build established: Mutant 1195 | -10/Materials | Lost 4 parts (1p1n1u1w) 1684 | -10/Materials | Discovered new exit (range 7) 1757 | -10/Materials | Entered Mines 1791 | -10/Mines | A weapon hastily lodged in a ceiling crevice suddenly fell to the ground 1866 | -10/Mines | Learned Materials terminal intel 3340 | -10/Mines | Discovered new exit (range 10) 3347 | -10/Mines | Core integrity fell below 50% 3389 | -10/Mines | Entered Materials 3389 | -9/Materials | Evolved 2 slots: Utility x2 3390 | -9/Materials | Loaded intel: 11 terminal locations 3791 | -9/Materials | Discovered new exit (range 16) 3818 | -9/Materials | Central database locked down 4036 | -9/Materials | Discovered new exit (range 4) 4298 | -9/Materials | Discovered new exit (range 7) 4541 | -9/Materials | Discovered new exit (range 9) 4652 | -9/Materials | Build established: Scavenger-Mutant 4728 | -9/Materials | Learned location of 1 exit from Recycling 4752 | -9/Materials | Discovered new exit (range 16) 4788 | -9/Materials | Identified exit to Mines 4788 | -9/Materials | Learned location of 2 exits from Materials 4836 | -9/Materials | Learned Storage emergency access door positions 4875 | -9/Materials | Learned 2 Storage zone layouts 4918 | -9/Materials | Learned location of Zion (-6) 4926 | -9/Materials | Learned Storage non-interactive machine intel 4945 | -9/Materials | Learned location of Mines (-9) 4973 | -9/Materials | Learned Storage emergency access door positions 4988 | -9/Materials | Repaired Adv. Beam Rifle 4989 | -9/Materials | First assault squad dispatched 5012 | -9/Materials | Learned 2 Storage zone layouts 5014 | -9/Materials | Build established: Mutant 5319 | -9/Materials | Entered Mines 5320 | -9/Mines | Learned location of Storage (-9) 5328 | -9/Mines | Learned 2 Materials zone layouts 5352 | -9/Mines | Discovered new exit (range 5) 5353 | -9/Mines | Assembled infested the area 5357 | -9/Mines | Entered Materials 5357 | -8/Materials | Evolved 2 slots: Propulsion x2 5358 | -8/Materials | Identified exit to Factory 5991 | -8/Materials | Repaired Hcp. Storage Unit 6337 | -8/Materials | Learned Factory security intel 6406 | -8/Materials | Learned Factory emergency access door positions 6514 | -8/Materials | Learned location of 1 exit from Extension 6542 | -8/Materials | Discovered exit to Factory (range 12) 6550 | -8/Materials | Learned Factory emergency access door positions 6578 | -8/Materials | Learned 8 Factory zone layouts 6624 | -8/Materials | Build established: Scavenger-Mutant 6647 | -8/Materials | Entered Factory 6647 | -7/Factory | Evolved 2 slots: Utility x2 7467 | -7/Factory | Repaired Reflective Plating 7707 | -7/Factory | Repaired Arm. Treads 7779 | -7/Factory | Discovered new exit (range 15) 7797 | -7/Factory | Build established: Hacker-Mutant 7819 | -7/Factory | Identified exit to Factory 8109 | -7/Factory | Build established: Scavenger-Mutant 8143 | -7/Factory | Repaired Reflective Plating 8182 | -7/Factory | Repaired Reflective Plating 8663 | -7/Factory | Build established: Hacker-Mutant 9058 | -7/Factory | Lost 3 parts (1n1u1w) 9728 | -7/Factory | Identified exit to Lower Caves 9958 | -7/Factory | Entered Lower Caves 10350 | -7/Lower Caves | Attacked by a delusional Derelict stockpiling parts 10893 | -7/Lower Caves | Discovered new exit (range 10) 10947 | -7/Lower Caves | Build established: Assassin 11315 | -7/Lower Caves | Identified exit to Lower Caves 11316 | -7/Lower Caves | Entered another Lower Caves area 11397 | -7/Lower Caves | Discovered exit to Factory (range 13) 11949 | -7/Lower Caves | Discovered new exit (range 15) 12477 | -7/Lower Caves | Identified exit to Data Miner 12479 | -7/Lower Caves | Entered Data Miner 12480 | -7/Data Miner | Discovered new exit (range 6) 12502 | -7/Data Miner | Met Data Miner 12531 | -7/Data Miner | Learned location of Section 7 (-2) 12531 | -7/Data Miner | Acquired the access code to Warlord's prototype stash 12549 | -7/Data Miner | Received God Mode back door access code from Data Miner 12593 | -7/Data Miner | Identified exit to Proximity Caves 12594 | -7/Data Miner | Entered Proximity Caves 12607 | -6/Proximity Caves | Spotter reported a threat 12869 | -6/Proximity Caves | Spotter reported a threat 12871 | -6/Proximity Caves | Attracted the attention of an 0b10 outpost 12932 | -6/Proximity Caves | Destroyed 7 combat bots 12999 | -6/Proximity Caves | Lost 3 parts (1p2u) 13080 | -6/Proximity Caves | Core integrity fell below 50% 13144 | -6/Proximity Caves | Lost 3 parts (2n1u) 13175 | -6/Proximity Caves | Build established: Mutant 13336 | -6/Proximity Caves | System corruption reached 10% 13366 | -6/Proximity Caves | Lost 3 parts (1p1u1w) 13736 | -6/Proximity Caves | Learned Factory security intel 13824 | -6/Proximity Caves | Discovered exit to Factory (range 14) 13855 | -6/Proximity Caves | Entered Factory 13855 | -6/Factory | Evolved 2 slots: Power x1, Utility x1 13856 | -6/Factory | Identified exit to Extension 14190 | -6/Factory | Build established: Hacker-Mutant 14764 | -6/Factory | Entered Extension 14765 | -6/Extension | Identified exit to Factory 14820 | -6/Extension | Build established: Scavenger-Mutant 14823 | -6/Extension | Lost 4 parts (1n2u1w) 14872 | -6/Extension | Rescued a captive Derelict 14897 | -6/Extension | Rescued a captive Derelict 14897 | -6/Extension | Rescued a captive Derelict 15018 | -6/Extension | Lost 10 parts (2p3n3u2w) 15258 | -6/Extension | Rescued a captive Derelict 15259 | -6/Extension | Rescued a captive Derelict 15786 | -6/Extension | Lost 4 allies 16080 | -6/Extension | Spotted B-75 Beast 16102 | -6/Extension | Core integrity fell below 50% 16162 | -6/Extension | Core integrity fell below 20% 16169 | -6/Extension | Destroyed B-75 Beast 16189 | -6/Extension | Disrupted transfer network 16192 | -6/Extension | Lost 14 parts (2p4n5u3w) 16326 | -6/Extension | Spotted B-75 Beast 16350 | -6/Extension | Destroyed by B-75 Beast with Magnetic Acceleration Cannon Last Messages --------------- payload. 16281_ H-66 Slayer unfolds itself. 16281_ Penetrated by Slug. 16281_ Slug penetrates U-05 Engineer. 16284_ Penetrated by Slug. 16284_ Imp. Light Armor Plating destroyed. 16288_ Penetrated by Slug. 16291_ Slug penetrates Wall. 16295_ Melted Hvy. Assault Rifle. 16296_ H-66 Slayer heat damages Gauss Rifle. 16297_ H-66 Slayer destroyed. 16299_ Acquired 24 matter. 16318_ Acquired Wheel. 16332_ U-05 Engineer builds a Wall. 16340_ Wheel destroyed. 16346_ U-05 Engineer builds a Wall. 16347_ Wheel destroyed. 16347_ Imp. Shield Generator destroyed. 16347_ Knocked back. 16347_ Mic. Nuclear Core destroyed. Map ----- +----------------------------------------------------+ | #??????????????????????# #?????????????????? | | #??????????????????????# #?????????????????? | | #??????????????????????# #?????????????????? | | #??????????????????????# #?????????????????? | | #######??????????????????????? ??????????????????? | | ?????????????????????????????? ??????????????????? | | ?????????????????????????????? ??????????????????? | | ?????????????????????????????? ??????????????????? | | ?????????????????????????????? ??????????????????? | | ?????????????????????????????? ??????????????????? | | ?????????????????????????????? ??????????????????? | | ?????????????????????????????????????????????????? | | ?????????????????????????????????????????????????? | | ?????????????????????????????????????????????????? | | ??????????????????????????????%#??##?????????????? | | ?????????????????????????????# ### ## ???????????? | | ?????????????????????????????" "" ??????????? | | ???????????????????????????? " " ??????????? | | ???????????????????????????? ?????????? | | ?????#???##????????????????? ?????????? | | ############################ ?????????? | | =% ????????? | | %|! ????????? | | %! ! !! %% %= ???????? | | %%u ! t % R ???????? | | Ru % %@ tR u ???????? | | ############################ BB ???????? | | ??????????????????##???????# BB ???????? | | ???????????????????????????? ????????? | | ????????????????????????????? ????????? | | ?????????????????????????????? ?????????? | | ???????????????????????????????##T#"""##?????????? | | ??????????????????????????????????#??????????????? | | ?????????????????????????????????????????????????? | | | | | | | | | | | | | | | | | | | | | | | | | | | | | | | | | +----------------------------------------------------+ Best States ------------- Heat Dissipation 75 Energy Generation 29 Energy Capacity 1180 Matter Stores 300 Matter Capacity 300 Sight Range 16 Robot Scan Range 15 Terrain Scan Range 16 Terrain Scan Density 10 Jamming Range 12 EM Shielding 2 Corruption Block 8 Armor Coverage 600 Resistance: KI 20 Resistance: TH 10 Core Shielding 20 Weapon Shielding 33 Evasion (%) 55 Recoil Reduction 4 Particle Charging 20 Offensive Hacking 20 Defensive Hacking 11 Item Schematics ----------------- Hacking Suite | -8/Materials | Scanalyzed Combat Drone Bay | -7/Data Miner | Free Lgt. Regenerative Plating | -7/Data Miner | Free Cld. Cesium-ion Thruster | -7/Data Miner | Free Exp. Targeting Computer | -7/Data Miner | Free Imp. Heavy Laser | -7/Data Miner | Free Gyrokinetic Inverter | -7/Data Miner | Free Adv. System Shield | -7/Data Miner | Free Mass Driver | -7/Data Miner | Free Magnetic Acceleration Cannon | -6/Extension | Hacked Robot Schematics ------------------ G-47 Trooper | -7/Data Miner | Free M-22 Extractor | -7/Data Miner | Free G-50 Soldier | -7/Data Miner | Free B-48 Gladiator | -7/Data Miner | Free A-15 Conveyor | -7/Data Miner | Free Fabricated ------------ Nothing Alien Tech Used ----------------- None Achievements -------------- None Challenges ------------ None Game ------ Seed LargeAluminumNeutralizer Manual? 0 Play Time 02:23:32 Cumulative 350.2 hours Start 2025.03.01 @ 15:44:51 End 2025.03.01 @ 18:10:48 Sessions 1 Manual Loads 0 Difficulty Rogue Special Mode None Game No. 249 Rogue 239 Adventurer 0 Explorer 10 Win Type - Total 4 Types 4/0/0/0/0/0/0/0/0 Lore% 80 Gallery% 74 Achievement% 59 Wizard Run 0 Options --------- Layout 2 ASCII 0 Keyboard 0 Movement Arrows Keybinds 1 Fullscreen 1 Font 24/Smallcaps Map View 50x44 Zoom Use 0% Tactical HUD 1 Map Filters NONE Filters NONE Steam 1 RUN: 91b06321-d816-43de-b080-7fa696516c7d